[Event "*** Titled Tuesday 3|2 Blitz"]
[Site "Chess.com"]
[Date "2016.10.04"]
[Round "5"]
[White "Iball95"]
[Black "Schemato"]
[Result "1-0"]
[WhiteElo "2517"]
[BlackElo "2311"]
[TimeControl "180+2"]
[EndTime "11:59:23 PDT"]
[Termination "Iball95 won by checkmate"]

1. d4 {[%clk 0:03:01.9]} 1... e6 {[%clk 0:03:00.5]} 2. c4 {[%clk 0:03:02.7]}
2... f5 {[%clk 0:03:01.5]} 3. Nc3 {[%clk 0:03:01.9]} 3... Nf6 {[%clk 0:03:02.5]}
4. e3 {[%clk 0:02:58.3]} 4... Bb4 {[%clk 0:02:57.1]} 5. Ne2 {[%clk 0:02:53.2]}
5... b6 {[%clk 0:02:55.8]} 6. a3 {[%clk 0:02:54.4]} 6... Bxc3+ {[%clk
0:02:55.3]} 7. Nxc3 {[%clk 0:02:55.2]} 7... Bb7 {[%clk 0:02:57.1]} 8. f3 {[%clk
0:02:56.7]} 8... O-O {[%clk 0:02:57.9]} 9. Bd3 {[%clk 0:02:58]} 9... d6 {[%clk
0:02:58.8]} 10. O-O {[%clk 0:02:59]} 10... Nbd7 {[%clk 0:02:59.2]} 11. b4 {[%clk
0:03:00.2]} 11... Qe7 {[%clk 0:02:58.4]} 12. Bb2 {[%clk 0:02:59.2]} 12... Rad8
{[%clk 0:02:47.5]} 13. Qc2 {[%clk 0:02:59.7]} 13... c5 {[%clk 0:02:44.4]} 14.
Rae1 {[%clk 0:02:58]} 14... Qf7 {[%clk 0:02:38.4]} 15. Nb5 {[%clk 0:02:58.6]}
15... Qe7 {[%clk 0:02:30.8]} 16. Nxa7 {[%clk 0:02:57.5]} 16... g6 {[%clk
0:02:03.1]} 17. Nb5 {[%clk 0:02:55.5]} 17... e5 {[%clk 0:02:03.2]} 18. bxc5
{[%clk 0:02:52]} 18... bxc5 {[%clk 0:02:02.1]} 19. d5 {[%clk 0:02:49]} 19... Ra8
{[%clk 0:01:57.5]} 20. f4 {[%clk 0:02:47.3]} 20... e4 {[%clk 0:01:48.3]} 21. Be2
{[%clk 0:02:47.6]} 21... h5 {[%clk 0:01:48.8]} 22. Nc7 {[%clk 0:02:43.3]} 22...
Ra7 {[%clk 0:01:47.6]} 23. Ne6 {[%clk 0:02:42.8]} 23... Rb8 {[%clk 0:01:47]} 24.
Qc3 {[%clk 0:02:42.9]} 24... Ba6 {[%clk 0:01:43.2]} 25. Bd1 {[%clk 0:02:07.7]}
25... Rab7 {[%clk 0:01:40.1]} 26. Rf2 {[%clk 0:02:08.9]} 26... Kh7 {[%clk
0:01:22.3]} 27. h3 {[%clk 0:02:06.4]} 27... Kh6 {[%clk 0:01:05.8]} 28. Ba4
{[%clk 0:02:03.4]} 28... Nh7 {[%clk 0:00:43.9]} 29. Qg7+ {[%clk 0:02:01.5]}
29... Qxg7 {[%clk 0:00:43.5]} 30. Bxg7# {[%clk 0:02:03.4]} 1-0

[Event "*** Titled Tuesday 3|2 Blitz"]
[Site "Chess.com"]
[Date "2016.10.04"]
[Round "5"]
[White "Lukianoo"]
[Black "LuckyTiger"]
[Result "1-0"]
[WhiteElo "2737"]
[BlackElo "2580"]
[TimeControl "180+2"]
[EndTime "12:00:18 PDT"]
[Termination "Lukianoo won by resignation"]

1. e4 {[%clk 0:03:01.9]} 1... c5 {[%clk 0:03:00.4]} 2. b3 {[%clk 0:03:00.5]}
2... Nc6 {[%clk 0:02:58.5]} 3. Bb2 {[%clk 0:02:59.8]} 3... d6 {[%clk 0:02:55.2]}
4. Bb5 {[%clk 0:02:59.3]} 4... Bd7 {[%clk 0:02:47.4]} 5. f4 {[%clk 0:02:59.3]}
5... Nf6 {[%clk 0:02:39.2]} 6. d3 {[%clk 0:02:55.4]} 6... Qa5+ {[%clk
0:02:25.3]} 7. Nc3 {[%clk 0:02:55.1]} 7... d5 {[%clk 0:02:26.4]} 8. exd5 {[%clk
0:02:48.5]} 8... Nxd5 {[%clk 0:02:25]} 9. Qd2 {[%clk 0:02:46.6]} 9... Nc7 {[%clk
0:01:48.4]} 10. a4 {[%clk 0:02:37.2]} 10... a6 {[%clk 0:01:39.7]} 11. Bxc6
{[%clk 0:02:37.7]} 11... Bxc6 {[%clk 0:01:40.3]} 12. Nf3 {[%clk 0:02:31.1]}
12... Bxf3 {[%clk 0:01:03]} 13. gxf3 {[%clk 0:02:33]} 13... e6 {[%clk
0:01:04.1]} 14. Rg1 {[%clk 0:02:24.2]} 14... O-O-O {[%clk 0:01:02.7]} 15. O-O-O
{[%clk 0:02:18.1]} 15... Qb4 {[%clk 0:00:59.2]} 16. f5 {[%clk 0:02:04.9]} 16...
exf5 {[%clk 0:00:53.8]} 17. Qg5 {[%clk 0:02:03.8]} 17... g6 {[%clk 0:00:43.4]}
18. Na2 {[%clk 0:02:01]} 18... Qa5 {[%clk 0:00:39.3]} 19. Bxh8 {[%clk
0:01:54.3]} 19... Ne6 {[%clk 0:00:39.3]} 20. Qe3 {[%clk 0:01:36.7]} 20... c4
{[%clk 0:00:17.2]} 21. Bc3 {[%clk 0:01:26.8]} 21... Qc7 {[%clk 0:00:10.4]} 22.
dxc4 {[%clk 0:01:25.6]} 22... Bc5 {[%clk 0:00:11.2]} 23. Qe5 {[%clk 0:01:20.8]}
23... Bxg1 {[%clk 0:00:09.1]} 24. Qxc7+ {[%clk 0:01:20.5]} 24... Kxc7 {[%clk
0:00:10.6]} 25. Rxg1 {[%clk 0:01:21.9]} 25... Nf4 {[%clk 0:00:11.9]} 26. Be5+
{[%clk 0:01:21.8]} 1-0

[Event "*** Titled Tuesday 3|2 Blitz"]
[Site "Chess.com"]
[Date "2016.10.04"]
[Round "5"]
[White "maciek_92"]
[Black "Lupul_Cenusiu"]
[Result "1-0"]
[WhiteElo "2599"]
[BlackElo "2380"]
[TimeControl "180+2"]
[EndTime "12:00:20 PDT"]
[Termination "maciek_92 won by resignation"]

1. c4 {[%clk 0:03:01.9]} 1... Nf6 {[%clk 0:02:58.8]} 2. g3 {[%clk 0:03:00.1]}
2... e5 {[%clk 0:02:59.6]} 3. Bg2 {[%clk 0:02:59.8]} 3... Nc6 {[%clk 0:03:00.8]}
4. Nc3 {[%clk 0:03:00.6]} 4... Bc5 {[%clk 0:03:01.9]} 5. e3 {[%clk 0:03:01.4]}
5... O-O {[%clk 0:03:00.3]} 6. Nge2 {[%clk 0:03:02.9]} 6... d6 {[%clk 0:03:01]}
7. O-O {[%clk 0:03:02.9]} 7... a6 {[%clk 0:03:02.1]} 8. h3 {[%clk 0:03:03.7]}
8... Re8 {[%clk 0:03:01.5]} 9. d4 {[%clk 0:03:04.4]} 9... Ba7 {[%clk 0:03:01]}
10. g4 {[%clk 0:03:05.4]} 10... exd4 {[%clk 0:02:57.3]} 11. exd4 {[%clk
0:03:06]} 11... Ne7 {[%clk 0:02:50]} 12. Bg5 {[%clk 0:02:37.3]} 12... Kh8 {[%clk
0:02:34.7]} 13. Qd2 {[%clk 0:02:32.9]} 13... Neg8 {[%clk 0:02:33.1]} 14. Ng3
{[%clk 0:02:25.8]} 14... h6 {[%clk 0:02:24.2]} 15. Bf4 {[%clk 0:02:26.8]} 15...
c6 {[%clk 0:02:16.8]} 16. Rfe1 {[%clk 0:02:26.5]} 16... Be6 {[%clk 0:02:16.5]}
17. d5 {[%clk 0:02:26.2]} 17... cxd5 {[%clk 0:02:14.5]} 18. cxd5 {[%clk
0:02:28.1]} 18... Bd7 {[%clk 0:02:13.6]} 19. Nge4 {[%clk 0:02:14.1]} 19... Nxe4
{[%clk 0:01:34.6]} 20. Nxe4 {[%clk 0:02:14.6]} 20... f5 {[%clk 0:01:25.9]} 21.
Nxd6 {[%clk 0:02:05.6]} 21... Rxe1+ {[%clk 0:01:19]} 22. Rxe1 {[%clk 0:02:07.5]}
22... Qf8 {[%clk 0:01:20.2]} 23. gxf5 {[%clk 0:01:52.7]} 23... Bxf5 {[%clk
0:01:18.1]} 24. Nxf5 {[%clk 0:01:43.4]} 24... Qxf5 {[%clk 0:01:18.6]} 25. d6
{[%clk 0:01:44.6]} 25... Nf6 {[%clk 0:01:16]} 26. Re7 {[%clk 0:01:32]} 26... Rd8
{[%clk 0:01:05]} 27. Rxb7 {[%clk 0:01:21.3]} 27... Bc5 {[%clk 0:01:05.3]} 28. b4
{[%clk 0:01:21.9]} 28... Bxd6 {[%clk 0:01:02.2]} 29. Bxd6 {[%clk 0:01:18]} 29...
Ne8 {[%clk 0:00:56.4]} 30. Rb8 {[%clk 0:01:17.3]} 1-0

[Event "*** Titled Tuesday 3|2 Blitz"]
[Site "Chess.com"]
[Date "2016.10.04"]
[Round "5"]
[White "FrankieJay"]
[Black "Carolina-moon"]
[Result "0-1"]
[WhiteElo "2185"]
[BlackElo "2162"]
[TimeControl "180+2"]
[EndTime "12:00:26 PDT"]
[Termination "Carolina-moon won by resignation"]

1. e4 {[%clk 0:03:02]} 1... c5 {[%clk 0:03:00]} 2. Nf3 {[%clk 0:03:03.1]} 2...
d6 {[%clk 0:03:01.4]} 3. d4 {[%clk 0:03:04.3]} 3... Nf6 {[%clk 0:03:02.9]} 4.
Nc3 {[%clk 0:03:05.2]} 4... cxd4 {[%clk 0:03:04.2]} 5. Nxd4 {[%clk 0:03:07.1]}
5... a6 {[%clk 0:03:05.6]} 6. Bg5 {[%clk 0:03:08.5]} 6... e6 {[%clk 0:03:07.1]}
7. f4 {[%clk 0:03:09.6]} 7... Be7 {[%clk 0:03:08.7]} 8. Qf3 {[%clk 0:03:10.9]}
8... Qc7 {[%clk 0:03:10.2]} 9. O-O-O {[%clk 0:03:12.2]} 9... Nbd7 {[%clk
0:03:11.5]} 10. g4 {[%clk 0:03:13.4]} 10... b5 {[%clk 0:03:12.9]} 11. Bxf6
{[%clk 0:03:12.3]} 11... Bxf6 {[%clk 0:03:14.1]} 12. g5 {[%clk 0:03:13.4]} 12...
Bxd4 {[%clk 0:03:14.5]} 13. Rxd4 {[%clk 0:03:14.7]} 13... Bb7 {[%clk 0:03:16]}
14. Bxb5 {[%clk 0:02:57]} 14... axb5 {[%clk 0:03:11.9]} 15. Nxb5 {[%clk
0:02:58.9]} 15... Qb6 {[%clk 0:03:07.2]} 16. Nxd6+ {[%clk 0:02:59.1]} 16... Ke7
{[%clk 0:03:00.5]} 17. Rhd1 {[%clk 0:02:55.9]} 17... Rxa2 {[%clk 0:02:49.5]} 18.
Nf5+ {[%clk 0:01:17.4]} 18... Ke8 {[%clk 0:01:19.7]} 19. Nd6+ {[%clk 0:00:51.2]}
19... Ke7 {[%clk 0:01:14.7]} 20. Nf5+ {[%clk 0:00:52]} 20... Ke8 {[%clk
0:01:10.7]} 21. Nd6+ {[%clk 0:00:30.3]} 21... Kf8 {[%clk 0:01:00.7]} 22. Qc3
{[%clk 0:00:30.9]} 22... Ra1+ {[%clk 0:00:58.9]} 23. Kd2 {[%clk 0:00:32.2]}
23... Rxd1+ {[%clk 0:00:57]} 24. Kxd1 {[%clk 0:00:34.1]} 24... Ke7 {[%clk
0:00:51]} 25. Qa3 {[%clk 0:00:27.7]} 25... Qxd4+ {[%clk 0:00:46.7]} 0-1

[Event "*** Titled Tuesday 3|2 Blitz"]
[Site "Chess.com"]
[Date "2016.10.04"]
[Round "5"]
[White "cassoulet"]
[Black "ka1ser64"]
[Result "1-0"]
[WhiteElo "2311"]
[BlackElo "2337"]
[TimeControl "180+2"]
[EndTime "12:00:29 PDT"]
[Termination "cassoulet won on time"]

1. e4 {[%clk 0:02:59]} 1... e6 {[%clk 0:03:01.1]} 2. d4 {[%clk 0:02:59.4]} 2...
d5 {[%clk 0:03:02.7]} 3. Nc3 {[%clk 0:03:01]} 3... Nc6 {[%clk 0:03:02.5]} 4. Nf3
{[%clk 0:03:00.3]} 4... Nf6 {[%clk 0:03:03.3]} 5. e5 {[%clk 0:02:57.4]} 5... Ne4
{[%clk 0:03:04.6]} 6. Bb5 {[%clk 0:02:52.7]} 6... Bb4 {[%clk 0:03:02.8]} 7. Bd2
{[%clk 0:02:53.4]} 7... Nxd2 {[%clk 0:03:02.9]} 8. Qxd2 {[%clk 0:02:52.5]} 8...
O-O {[%clk 0:03:00.2]} 9. a3 {[%clk 0:02:53.5]} 9... Be7 {[%clk 0:03:00.7]} 10.
O-O {[%clk 0:02:55]} 10... f6 {[%clk 0:02:52.5]} 11. Rfe1 {[%clk 0:02:52.9]}
11... fxe5 {[%clk 0:02:45.4]} 12. Bxc6 {[%clk 0:02:53.5]} 12... e4 {[%clk
0:01:45]} 13. Nxe4 {[%clk 0:02:43.9]} 13... bxc6 {[%clk 0:01:44.9]} 14. Ng3
{[%clk 0:02:43.2]} 14... c5 {[%clk 0:01:42.8]} 15. c3 {[%clk 0:02:36.3]} 15...
Rb8 {[%clk 0:01:34.8]} 16. Re3 {[%clk 0:02:33.6]} 16... Rb6 {[%clk 0:01:24.8]}
17. b4 {[%clk 0:02:34.4]} 17... cxd4 {[%clk 0:01:14.3]} 18. cxd4 {[%clk
0:02:32.4]} 18... Ba6 {[%clk 0:00:54.1]} 19. Rae1 {[%clk 0:02:25.1]} 19... Qd6
{[%clk 0:00:50.9]} 20. Qc2 {[%clk 0:01:59.6]} 20... Bc4 {[%clk 0:00:40.9]} 21.
Ne5 {[%clk 0:01:55.1]} 21... Bb5 {[%clk 0:00:37.7]} 22. Nh5 {[%clk 0:01:53]}
22... Be8 {[%clk 0:00:34.2]} 23. Ng3 {[%clk 0:01:44.9]} 23... a5 {[%clk
0:00:30.9]} 24. bxa5 {[%clk 0:01:44.7]} 24... Ra6 {[%clk 0:00:31.7]} 25. Nd3
{[%clk 0:01:40.8]} 25... Qxa3 {[%clk 0:00:24.7]} 26. Nc5 {[%clk 0:01:37.4]}
26... Bxc5 {[%clk 0:00:10.7]} 27. Rxa3 {[%clk 0:01:36.3]} 27... Bxa3 {[%clk
0:00:12.6]} 28. Qxc7 {[%clk 0:01:35.2]} 28... Bb4 {[%clk 0:00:11.9]} 29. Ra1
{[%clk 0:01:34.4]} 29... h6 {[%clk 0:00:03]} 30. h3 {[%clk 0:01:34.9]} 30... Bd6
{[%clk 0:00:03.1]} 31. Qb7 {[%clk 0:01:35]} 1-0

[Event "*** Titled Tuesday 3|2 Blitz"]
[Site "Chess.com"]
[Date "2016.10.04"]
[Round "5"]
[White "wannabe2700"]
[Black "Scott-fox21"]
[Result "1-0"]
[WhiteElo "2304"]
[BlackElo "2156"]
[TimeControl "180+2"]
[EndTime "12:00:42 PDT"]
[Termination "wannabe2700 won by resignation"]

1. e4 {[%clk 0:03:01.9]} 1... c5 {[%clk 0:03:00.7]} 2. Nf3 {[%clk 0:03:03.3]}
2... d6 {[%clk 0:03:01.5]} 3. d4 {[%clk 0:03:04.7]} 3... cxd4 {[%clk 0:03:03.4]}
4. Nxd4 {[%clk 0:03:06.6]} 4... Nf6 {[%clk 0:03:04.2]} 5. Nc3 {[%clk 0:03:08.1]}
5... Nc6 {[%clk 0:03:05.6]} 6. Bg5 {[%clk 0:03:06.1]} 6... e6 {[%clk 0:03:03.2]}
7. Qd2 {[%clk 0:03:07.3]} 7... a6 {[%clk 0:03:03.8]} 8. O-O-O {[%clk 0:03:08.4]}
8... Bd7 {[%clk 0:03:04.8]} 9. f4 {[%clk 0:03:08.2]} 9... h6 {[%clk 0:03:04.4]}
10. Bxf6 {[%clk 0:03:00.2]} 10... Qxf6 {[%clk 0:02:42.5]} 11. e5 {[%clk
0:03:00.2]} 11... dxe5 {[%clk 0:02:26.2]} 12. Ndb5 {[%clk 0:03:00.3]} 12... Qd8
{[%clk 0:02:26]} 13. Nd6+ {[%clk 0:03:00.3]} 13... Bxd6 {[%clk 0:02:23.1]} 14.
Qxd6 {[%clk 0:03:02.2]} 14... exf4 {[%clk 0:02:05.1]} 15. Ne4 {[%clk 0:03:02.7]}
15... Qe7 {[%clk 0:01:57.5]} 16. Qc7 {[%clk 0:03:03.7]} 16... O-O {[%clk
0:00:20.9]} 17. Rxd7 {[%clk 0:02:59.3]} 17... Qb4 {[%clk 0:00:20.7]} 18. Bd3
{[%clk 0:02:55.4]} 18... Rfc8 {[%clk 0:00:17.6]} 19. Qxb7 {[%clk 0:02:55.4]}
19... Qxb7 {[%clk 0:00:18.4]} 20. Rxb7 {[%clk 0:02:55.8]} 20... Ne5 {[%clk
0:00:19]} 21. Kb1 {[%clk 0:02:53.5]} 21... f5 {[%clk 0:00:18.1]} 22. Nd6 {[%clk
0:02:51.2]} 22... Rc6 {[%clk 0:00:18.7]} 23. Nxf5 {[%clk 0:02:33.5]} 23... exf5
{[%clk 0:00:20.2]} 24. Bxf5 {[%clk 0:02:35.3]} 24... Rd8 {[%clk 0:00:16.9]} 25.
b3 {[%clk 0:02:29.7]} 25... Nf7 {[%clk 0:00:14.6]} 26. Bd3 {[%clk 0:02:23.3]}
26... Ne5 {[%clk 0:00:12.5]} 27. Be4 {[%clk 0:02:22.3]} 27... Rcd6 {[%clk
0:00:12.3]} 28. Kb2 {[%clk 0:02:20.9]} 28... R8d7 {[%clk 0:00:13]} 29. Rb4
{[%clk 0:02:19.6]} 29... Rd4 {[%clk 0:00:13.6]} 30. Rb8+ {[%clk 0:02:18.8]}
30... Rd8 {[%clk 0:00:15]} 31. Rxd8+ {[%clk 0:02:20.1]} 31... Rxd8 {[%clk
0:00:16.9]} 32. Re1 {[%clk 0:02:20]} 32... g5 {[%clk 0:00:16.3]} 33. Bf5 {[%clk
0:02:19]} 33... Nf7 {[%clk 0:00:16.8]} 34. Re6 {[%clk 0:02:18.8]} 34... Kg7
{[%clk 0:00:17]} 35. Rg6+ {[%clk 0:02:18.7]} 35... Kf8 {[%clk 0:00:18.3]} 36.
Rxa6 {[%clk 0:02:20.6]} 36... Rd6 {[%clk 0:00:18.8]} 37. Rxd6 {[%clk 0:02:19.3]}
37... Nxd6 {[%clk 0:00:20.1]} 38. Bd3 {[%clk 0:02:19.3]} 38... Ke7 {[%clk
0:00:20.9]} 39. c4 {[%clk 0:02:20.4]} 39... Kd7 {[%clk 0:00:22.1]} 40. c5 {[%clk
0:02:20.9]} 40... Nb7 {[%clk 0:00:22.7]} 41. b4 {[%clk 0:02:22.3]} 41... Nd8
{[%clk 0:00:23.2]} 42. Kc3 {[%clk 0:02:21.8]} 42... Ne6 {[%clk 0:00:24.3]} 43.
Bf5 {[%clk 0:02:22.3]} 43... Ke7 {[%clk 0:00:24.8]} 44. Bxe6 {[%clk 0:02:20.2]}
44... Kxe6 {[%clk 0:00:26.7]} 45. Kd4 {[%clk 0:02:21.6]} 45... h5 {[%clk
0:00:27]} 46. Ke4 {[%clk 0:02:22.4]} 46... Kd7 {[%clk 0:00:27.3]} 47. Kf5 {[%clk
0:02:21.5]} 1-0

[Event "*** Titled Tuesday 3|2 Blitz"]
[Site "Chess.com"]
[Date "2016.10.04"]
[Round "5"]
[White "Sanan_Sjugirov"]
[Black "Rumpel-VK"]
[Result "0-1"]
[WhiteElo "2682"]
[BlackElo "2480"]
[TimeControl "180+2"]
[EndTime "12:00:48 PDT"]
[Termination "Rumpel-VK won on time"]

1. d4 {[%clk 0:03:01.9]} 1... Nf6 {[%clk 0:03:00.1]} 2. Nf3 {[%clk 0:03:02.9]}
2... e6 {[%clk 0:03:00.2]} 3. Bg5 {[%clk 0:03:03.8]} 3... Be7 {[%clk 0:02:58.7]}
4. Nbd2 {[%clk 0:03:04.3]} 4... d5 {[%clk 0:02:59.3]} 5. e3 {[%clk 0:03:05.1]}
5... O-O {[%clk 0:02:57.5]} 6. Bd3 {[%clk 0:03:05.6]} 6... Nbd7 {[%clk
0:02:54.6]} 7. c3 {[%clk 0:03:03.3]} 7... h6 {[%clk 0:02:55]} 8. Bh4 {[%clk
0:03:02.8]} 8... c5 {[%clk 0:02:51.5]} 9. Qe2 {[%clk 0:03:03.2]} 9... b6 {[%clk
0:02:52.1]} 10. h3 {[%clk 0:02:56.5]} 10... Qc7 {[%clk 0:02:45.4]} 11. g4 {[%clk
0:02:52.5]} 11... e5 {[%clk 0:02:26.6]} 12. dxe5 {[%clk 0:02:43.1]} 12... Nxe5
{[%clk 0:02:27.1]} 13. Nxe5 {[%clk 0:02:39.2]} 13... Qxe5 {[%clk 0:02:29]} 14.
g5 {[%clk 0:02:31.6]} 14... Ne4 {[%clk 0:02:15.7]} 15. Nf3 {[%clk 0:02:29.2]}
15... Qe6 {[%clk 0:02:02]} 16. gxh6 {[%clk 0:02:14.7]} 16... Bxh4 {[%clk
0:02:00.8]} 17. Nxh4 {[%clk 0:01:43.9]} 17... Qxh6 {[%clk 0:02:01.5]} 18. Ng2
{[%clk 0:01:34.1]} 18... Qf6 {[%clk 0:01:47.4]} 19. Bxe4 {[%clk 0:01:21]} 19...
dxe4 {[%clk 0:01:48]} 20. Nf4 {[%clk 0:01:21.4]} 20... a5 {[%clk 0:01:39.9]} 21.
O-O-O {[%clk 0:01:16.6]} 21... Ba6 {[%clk 0:01:36.6]} 22. Qg4 {[%clk 0:01:11.4]}
22... Rad8 {[%clk 0:01:29.7]} 23. Rhg1 {[%clk 0:00:51.1]} 23... Rxd1+ {[%clk
0:01:28.6]} 24. Rxd1 {[%clk 0:00:48.7]} 24... Rd8 {[%clk 0:01:23.1]} 25. Rxd8+
{[%clk 0:00:28.8]} 25... Qxd8 {[%clk 0:01:23.7]} 26. h4 {[%clk 0:00:20.7]} 26...
a4 {[%clk 0:01:23.8]} 27. a3 {[%clk 0:00:19.8]} 27... Bc4 {[%clk 0:01:20.8]} 28.
h5 {[%clk 0:00:17.7]} 28... Kf8 {[%clk 0:01:18.5]} 29. h6 {[%clk 0:00:04.2]}
29... gxh6 {[%clk 0:01:18.6]} 0-1

[Event "*** Titled Tuesday 3|2 Blitz"]
[Site "Chess.com"]
[Date "2016.10.04"]
[Round "5"]
[White "MyleneFarmer"]
[Black "Kouzari"]
[Result "1-0"]
[WhiteElo "2314"]
[BlackElo "2422"]
[TimeControl "180+2"]
[EndTime "12:00:56 PDT"]
[Termination "MyleneFarmer won by resignation"]

1. e4 {[%clk 0:03:02]} 1... c5 {[%clk 0:03:00]} 2. Nf3 {[%clk 0:02:54.1]} 2...
b6 {[%clk 0:02:47.4]} 3. d4 {[%clk 0:02:52.8]} 3... cxd4 {[%clk 0:02:49.3]} 4.
Nxd4 {[%clk 0:02:54]} 4... Bb7 {[%clk 0:02:49]} 5. Nc3 {[%clk 0:02:55.4]} 5...
d6 {[%clk 0:02:49.9]} 6. g3 {[%clk 0:02:54.7]} 6... Nd7 {[%clk 0:02:51.8]} 7.
Bg2 {[%clk 0:02:56]} 7... e6 {[%clk 0:02:52.5]} 8. O-O {[%clk 0:02:56.8]} 8...
Be7 {[%clk 0:02:54.1]} 9. Re1 {[%clk 0:02:57.9]} 9... a6 {[%clk 0:02:55.7]} 10.
a4 {[%clk 0:02:56.5]} 10... Qc7 {[%clk 0:02:57.1]} 11. a5 {[%clk 0:02:55.2]}
11... bxa5 {[%clk 0:02:55.3]} 12. Nb3 {[%clk 0:02:56]} 12... Rc8 {[%clk
0:02:52.1]} 13. Nxa5 {[%clk 0:02:55.5]} 13... Ba8 {[%clk 0:02:53.4]} 14. Nb3
{[%clk 0:02:47.3]} 14... Bb7 {[%clk 0:02:46.9]} 15. Na5 {[%clk 0:02:40.5]} 15...
Ba8 {[%clk 0:02:36.5]} 16. Nb3 {[%clk 0:02:39.8]} 16... Bb7 {[%clk 0:02:37.8]}
17. Na5 {[%clk 0:02:39.6]} 17... Ba8 {[%clk 0:02:38.9]} 18. Nb3 {[%clk
0:02:39.8]} 18... Nb8 {[%clk 0:02:40.5]} 19. Bf4 {[%clk 0:02:37.6]} 19... e5
{[%clk 0:02:35.9]} 20. Be3 {[%clk 0:02:37.8]} 20... Nf6 {[%clk 0:02:37.5]} 21.
Bg5 {[%clk 0:02:37.7]} 21... O-O {[%clk 0:02:37.9]} 22. Nd2 {[%clk 0:02:36.9]}
22... h6 {[%clk 0:02:34.4]} 23. Bxf6 {[%clk 0:02:36.6]} 23... Bxf6 {[%clk
0:02:36.3]} 24. Nf1 {[%clk 0:02:38.1]} 24... Qb6 {[%clk 0:02:32.2]} 25. Ra2
{[%clk 0:02:35.2]} 25... Rc4 {[%clk 0:02:24.7]} 26. Ne3 {[%clk 0:02:34]} 26...
Rd4 {[%clk 0:02:26]} 27. Qc1 {[%clk 0:02:34.2]} 27... Rc8 {[%clk 0:02:25.7]} 28.
Ned5 {[%clk 0:02:34.2]} 28... Bxd5 {[%clk 0:02:26.8]} 29. Nxd5 {[%clk
0:02:35.8]} 29... Qd8 {[%clk 0:02:22.5]} 30. c3 {[%clk 0:02:30]} 30... Rdc4
{[%clk 0:02:22.1]} 31. Bh3 {[%clk 0:02:30.6]} 31... R8c5 {[%clk 0:02:18.4]} 32.
Bf1 {[%clk 0:02:31.3]} 32... Rxe4 {[%clk 0:02:18.2]} 33. Nxf6+ {[%clk
0:02:30.9]} 33... Qxf6 {[%clk 0:02:18.4]} 34. Rxe4 {[%clk 0:02:32.4]} 34... d5
{[%clk 0:02:20.3]} 35. Re1 {[%clk 0:02:31.8]} 35... e4 {[%clk 0:02:21.6]} 36.
Qe3 {[%clk 0:02:31.9]} 36... Nd7 {[%clk 0:02:21.6]} 37. Rxa6 {[%clk 0:02:30.2]}
37... Qf5 {[%clk 0:02:17]} 38. Bg2 {[%clk 0:02:19.6]} 38... Rb5 {[%clk
0:02:03.3]} 39. b4 {[%clk 0:02:18.6]} 39... Ne5 {[%clk 0:02:04.1]} 40. Rb6
{[%clk 0:02:03.8]} 40... Nc4 {[%clk 0:02:01.8]} 41. Rxb5 {[%clk 0:02:03]} 41...
Nxe3 {[%clk 0:02:02.9]} 42. Rxe3 {[%clk 0:02:04.5]} 42... Qd7 {[%clk 0:02:03.5]}
43. Rc5 {[%clk 0:02:01.2]} 43... f5 {[%clk 0:02:05.1]} 44. Re1 {[%clk
0:02:01.8]} 44... d4 {[%clk 0:02:06.5]} 45. cxd4 {[%clk 0:02:00]} 45... Qxd4
{[%clk 0:02:08.4]} 46. Rc8+ {[%clk 0:01:59.7]} 46... Kh7 {[%clk 0:02:07.4]} 47.
Rb1 {[%clk 0:01:57.6]} 47... e3 {[%clk 0:02:07.7]} 48. fxe3 {[%clk 0:01:57.6]}
48... Qxe3+ {[%clk 0:02:09]} 49. Kh1 {[%clk 0:01:58.7]} 49... g5 {[%clk
0:02:06]} 50. b5 {[%clk 0:01:58.3]} 50... f4 {[%clk 0:02:07.5]} 51. gxf4 {[%clk
0:01:52.8]} 51... gxf4 {[%clk 0:02:08.4]} 52. Rf8 {[%clk 0:01:53.9]} 52... h5
{[%clk 0:02:05.3]} 53. b6 {[%clk 0:01:52.3]} 53... h4 {[%clk 0:01:47.2]} 54. b7
{[%clk 0:01:49.5]} 54... h3 {[%clk 0:01:48.7]} 55. Rh8+ {[%clk 0:01:49.9]} 55...
Kg7 {[%clk 0:01:46.7]} 56. Rxh3 {[%clk 0:01:46.2]} 1-0